Cogmind - Beta 10.1 @@@ ROGUE MODE // 2020.10.11 @ 14:43:16 Player: CV-BEE Result: Destroyed by P-60 Hacker with Shock Rifle Performance ------------- Evolutions (3) 1500 Regions Visited (9) 1800 Robots Destroyed (40) 200 Value Destroyed (2249) 2249 Prototype IDs (6) 120 Alien Tech Used (0) 0 Bonus (1744) 1744 TOTAL SCORE: 7613 Bonus ------- Follower Combat Kills 377 Entered Garrisons 400 Used RIF Installer 1000 Friendly Fire -33 Cogmind --------- Core Integrity 0/700 Matter 300/300 Energy 144/160 System Corruption 6% Temperature Cool (0) Movement Rolling (100) Ox1 Location -7/Storage Parts ------- > --- POWER (1) -------- Light Nuclear Core > --- PROPULSION (2) --- Wheel Compact Wheel > --- UTILITY (7) ------ Medium Storage Unit Large Storage Unit Improved Light Armor Plating Relay Coupler [NC] (5) Relay Coupler [Grunt] (19) Drone Bay (1/2) Drone Bay (2/2) > --- WEAPON (3) ------- Improved Datajack Chainsword Chainsword > --- INVENTORY (14) --- Deuterium Engine Compact Wheel Compact Wheel Relay Coupler [NC] (37) Relay Coupler [Demolisher] (32) Drone Bay (2/2) Drone Bay (2/2) Drone Bay (2/2) Drone Bay (2/2) Precision Rocket Launcher Precision Rocket Launcher Remote Datajack Chainsword Chainsword Peak State ------------ > --- POWER ------------ Improved Deuterium Engine > --- PROPULSION ------- Compact Wheel Compact Wheel > --- UTILITY ---------- Large Storage Unit Improved Melee Analysis Suite Hardened Heavy Armor Plating Improved Light Armor Plating Relay Coupler [NC] Relay Coupler [Grunt] > --- WEAPON ----------- Compact Ion Cannon Precision Assault Rifle Precision Rocket Launcher > --- INVENTORY -------- Deuterium Engine Compact Wheel Relay Coupler [NC] Relay Coupler [Grunt] Relay Coupler [Demolisher] Precision Assault Rifle Precision Rocket Launcher Improved Datajack Powered Hammer Katana [Rating: 46] Favorites ----------- Power Light Nuclear Core Engine Improved Deuterium Engine Power Core Light Nuclear Core Propulsion Aluminum Leg Leg Aluminum Leg Wheel Compact Wheel Hover Unit Combat Airjet Utility Improved Melee Analysis Suite Device Improved Terrain Scanner Storage Small Storage Unit Processor Improved Melee Analysis Suite Hackware Relay Coupler [NC] Protection Improved Light Armor Plating Weapon Katana Energy Gun Particle Gun Energy Cannon Compact Ion Cannon Ballistic Gun Precision Assault Rifle Ballistic Cannon Mini Assault Cannon Launcher Rocket Launcher Impact Weapon Powered Hammer Slashing Weapon Katana Special Melee Weapon Improved Datajack Build | -11 -10 -10 -9 -9 -8 -8 -7 -7 -7 ------- Run | Scr Mat Min Mat Min Mat Gar Fac Gar Sto Slots Evolved 6 | . . . 2 . 2 . 2 . . Power . | . . . . . . . . . . Propulsion . | . . . . . . . . . . Utility 5 | . . . 2 . 1 . 2 . . Weapon 1 | . . . . . 1 . . . . Parts Attached 114 | . 3 3 4 1 4 . 21 30 48 Power 13 | . . 1 . 1 . . 2 5 4 Engine 6 | . . 1 . . . . 2 . 3 Core 7 | . . . . 1 . . . 5 1 Reactor . | . . . . . . . . . . Propulsion 21 | . . 2 . . . . 4 8 7 Treads . | . . . . . . . . . . Leg 9 | . . . . . . . . 7 2 Wheel 5 | . . . . . . . . . 5 Hover 7 | . . 2 . . . . 4 1 . Flight . | . . . . . . . . . . Utility 35 | . 1 . 2 . 3 . 7 10 12 Device 9 | . . . 1 . 2 . 1 2 3 Storage 3 | . . . . . . . . . 3 Processor 6 | . 1 . 1 . . . 3 . 1 Hackware 13 | . . . . . . . 3 8 2 Protection 4 | . . . . . 1 . . . 3 Artifact . | . . . . . . . . . . Weapon 45 | . 2 . 2 . 1 . 8 7 25 Energy Gun 3 | . . . . . . . 1 1 1 Energy Cannon 2 | . . . . . . . . . 2 Ballistic Gun 6 | . . . . . . . . . 6 Ballistic Cannon 1 | . . . . . . . . . 1 Launcher 4 | . 2 . . . . . . 1 1 Special Weapon . | . . . . . . . . . . Impact Weapon 5 | . . . . . . . 2 2 1 Slashing Weapon 10 | . . . 2 . 1 . 2 . 5 Piercing Weapon . | . . . . . . . . . . Special Melee Weapon 14 | . . . . . . . 3 3 8 Unidentified Prototypes 5 | . . . . . . . 1 . 4 Parts Lost 23 | . . . 2 . . 2 2 11 6 Power 4 | . . . 1 . . . 1 1 1 Propulsion 8 | . . . 1 . . . 1 4 2 Utility 8 | . . . . . . 1 . 4 3 Weapon 3 | . . . . . . 1 . 2 . Highest Loss Streak 4 | . . . 2 . . 2 2 4 2 Average Slot Usage (%) 92 | . 97 100 97 88 87 88 92 89 94 Engine 4 | . 14 14 10 . . . 6 . 4 Core 3 | . . . . 11 9 9 . 6 2 Leg 7 | . 28 23 . . . . . 13 5 Wheel 3 | . . . . . . . . . 9 Hover 4 | . . 4 21 11 9 9 14 . . Device 4 | . . . 11 11 9 9 6 5 2 Storage 6 | . 14 14 11 11 9 9 7 . 8 Processor 14 | . 11 14 22 22 18 18 22 17 7 Hackware 16 | . . . . . . . 13 25 21 Protection 3 | . . . . . 6 8 . . 8 Ballistic Gun 4 | . 19 . . . . . . . 9 Launcher 2 | . 8 28 . . . . . 3 . Impact Weapon 1 | . . . . . . . 3 2 . Slashing Weapon 10 | . . . 20 22 26 26 12 7 8 Special Melee Weapon 2 | . . . . . . . 3 2 2 Naked Turns . | . . . . . . . . . . Heaviest Build 66 | 9 15 17 14 14 19 19 21 22 66 Greatest Support 44 | 20 20 44 44 22 22 22 31 30 33 Greatest Overweight (x) 12 | . . 1 . . . . 2 1 12 Average Overweight (x) . | . . . . . . . . . . Largest Inventory Capacity 14 | . 6 6 6 6 6 6 6 6 14 Average Capacity 7 | . 6 6 6 6 6 6 6 4 10 Most Carried 14 | . 6 6 6 6 6 6 6 6 14 Average Carried 6 | . 5 5 5 5 5 5 5 3 9 Final Capacity 14 | 6 6 6 6 6 6 6 6 4 14 Final Carried 14 | 6 6 6 6 6 6 6 6 4 14 Class Distribution -------------------- 54% | Mutant 31% | Bothacker-Mutant 7% | Bothacker-Tank 5% | Bothacker-Gunner Dominant Class ---------------- Mutant | -10/Materials Mutant | -10/Mines Mutant | -9/Materials Mutant | -9/Mines Mutant | -8/Materials Mutant | -8/Garrison Mutant | -7/Factory Mutant | -7/Garrison Bothacker-Mutant | -7/Storage Resources | -11 -10 -10 -9 -9 -8 -8 -7 -7 -7 ----------- Run | Scr Mat Min Mat Min Mat Gar Fac Gar Sto Matter Collected 1578 | 200 58 84 40 10 40 . 84 371 691 Remotely . | . . . . . . . . . . Salvage Created 1678 | . 114 . 154 . 60 . 43 510 797 Parts 80 | . 6 . 9 . 4 . 3 16 42 Haulers Intercepted 7 | . 1 . . . 1 . . . 5 Recyclers Shooed . | . . . . . . . . . . Parts Field Recycled . | . . . . . . . . . . Retrieved Matter . | . . . . . . . . . . Parts Self-Destructed . | . . . . . . . . . . Prevented . | . . . . . . . . . . Kills | -11 -10 -10 -9 -9 -8 -8 -7 -7 -7 ------- Run | Scr Mat Min Mat Min Mat Gar Fac Gar Sto Combat Hostiles Destroyed 30 | . 2 . 4 . . . 1 13 10 Melee 21 | . . . 4 . . . 1 8 8 Guns 2 | . . . . . . . . . 2 AOE 2 | . 2 . . . . . . . . Classes Destroyed 8 | . 2 . 1 . . . 1 1 3 Worker 2 | . . . . . . . . . 2 Hauler 7 | . 1 . . . 1 . . . 5 Recycler 1 | . . . . . . . . . 1 Swarmer 11 | . . . 1 . . . . 6 4 Grunt 11 | . 2 . 3 . . . . 6 . Duelist 1 | . . . . . . . . 1 . Sentry 4 | . . . . . . . . . 4 Programmer 3 | . . . . . . . 1 . 2 Best Kill Streak 4 | . 3 . 4 . 1 . 1 3 3 Combat Bots Only 4 | . 2 . 4 . . . 1 3 2 Max Kills in Single Turn 2 | . 1 . 1 . 1 . 1 1 2 Gunslinging . | . . . . . . . . . . Exploded 1 | . 1 . . . . . . . . Melee 1 | . . . 1 . . . 1 1 1 Uniques/NPCs Destroyed . | . . . . . . . . . . Combat | -11 -10 -10 -9 -9 -8 -8 -7 -7 -7 -------- Run | Scr Mat Min Mat Min Mat Gar Fac Gar Sto Damage Taken 4334 | . 93 . 524 . . 271 177 1204 2065 Core 951 | . 11 . 190 . . 47 22 340 341 Absorbed by Shields 133 | . . . . . . 4 20 109 . Core Remaining (%) 84 | 100 . 95 . 52 . 91 . . . Volleys Fired 33 | . 11 . . . . . . . 22 Largest 3 | . 2 . . . . . . . 3 Hottest 146 | . 66 . . . . . . . 146 Shots Fired 82 | . 22 . . . . . . . 60 Gun 62 | . 16 . . . . . . . 46 Cannon 14 | . . . . . . . . . 14 Launcher 6 | . 6 . . . . . . . . Special . | . . . . . . . . . . Kinetic 59 | . 16 . . . . . . . 43 Thermal 17 | . . . . . . . . . 17 Explosive 6 | . 6 . . . . . . . . Electromagnetic . | . . . . . . . . . . Robot Hit Streak 7 | . 7 . . . . . . . 7 Robot Miss Streak 5 | . 5 . . . . . . . 3 Penetration Max . | . . . . . . . . . . Secondary Targets . | . . . . . . . . . . Shots Hit Robots 196 | . 13 . 10 . 5 . 12 55 101 Core Hits 46 | . 7 . 4 . 1 . 1 9 24 Critical Hits . | . . . . . . . . . . Critical Kills . | . . . . . . . . . . Critical Parts Destroyed . | . . . . . . . . . . Melee Attacks 225 | . . . 16 . 7 11 17 72 102 Impact 39 | . . . . . . . . 39 . Slashing 130 | . . . 16 . 7 11 7 17 72 Piercing . | . . . . . . . . . . Sneak Attacks 31 | . . . . . 1 . 6 5 19 Combat Hostiles 8 | . . . . . . . 4 4 . Follow-up Attacks 26 | . . . 2 . . . 1 6 17 Damage Inflicted 5093 | . 265 . 299 . 229 . 128 1289 2883 Guns 605 | . 80 . . . . . . . 525 Cannons 181 | . . . . . . . . . 181 Explosions 185 | . 185 . . . . . . . . Melee 4121 | . . . 299 . 229 . 128 1288 2177 Ramming 1 | . . . . . . . . 1 . Kinetic 605 | . 80 . . . . . . . 525 Thermal 181 | . . . . . . . . . 181 Explosive 185 | . 185 . . . . . . . . Electromagnetic . | . . . . . . . . . . Impact 961 | . . . . . . . . 961 . Slashing 3160 | . . . 299 . 229 . 128 327 2177 Piercing . | . . . . . . . . . . Highest Corruption 6 | . . . . . . . 2 2 6 Average Corruption 3 | . . . . . . . 2 2 4 Corruption Purged . | . . . . . . . . . . Effects 56 | . . . . . . . 4 12 40 Message Errors 18 | . . . . . . . 1 6 11 Matter Fused 8 | . . . . . . . . . 8 Heat Flow Errors 6 | . . . . . . . . 2 4 Energy Discharges 9 | . . . . . . . 2 1 6 Data Loss (minor) 7 | . . . . . . . 1 2 4 Data Loss (major) 3 | . . . . . . . . . 3 Misfires 1 | . . . . . . . . . 1 Targeting Errors 4 | . . . . . . . . 1 3 Overload Shots . | . . . . . . . . . . Overflow Damage 295 | . 1 . 7 . 21 . . 107 159 Projectiles 27 | . . . . . . . . . 27 Explosions 1 | . 1 . . . . . . . . Melee 267 | . . . 7 . 21 . . 107 132 Knockbacks 2 | . . . . . . . . 2 . Impact 2 | . . . . . . . . 2 . Kinetic . | . . . . . . . . . . Secondary . | . . . . . . . . . . Self-Inflicted Damage . | . . . . . . . . . . Shots . | . . . . . . . . . . Rammed 1 | . . . . . . . . 1 . Targets Rammed 1 | . . . . . . . . 1 . Kicked . | . . . . . . . . . . Crushed . | . . . . . . . . . . Highest Temperature 551 | . 39 . . . . . . 231 551 Average Temperature 150 | . 25 . . . . . . 111 163 Received Heat Transfer 921 | . 54 . 108 . . 150 6 387 216 Effects 2 | . . . . . . . . . 2 Shutdowns 1 | . . . . . . . . . 1 Damage (core) 1 | . . . . . . . . . 1 Siege Activations . | . . . . . . . . . . Robots Corrupted . | . . . . . . . . . . Combat Hostiles . | . . . . . . . . . . Parts Fried 4 | . . . . . . . . 4 . Impact Corruptions 9 | . . . . . . . . 9 . Robots Melted . | . . . . . . . . . . Combat Hostiles . | . . . . . . . . . . Parts Melted . | . . . . . . . . . . Heat Transferred 222 | . . . . . . . . . 222 Parts Sabotaged . | . . . . . . . . . . Parts Stolen . | . . . . . . . . . . Parts Stripped . | . . . . . . . . . . Power Chain Reactions . | . . . . . . . . . . Missiles Intercepted . | . . . . . . . . . . Alert | -11 -10 -10 -9 -9 -8 -8 -7 -7 -7 ------- Run | Scr Mat Min Mat Min Mat Gar Fac Gar Sto Peak Influence 375 | . 77 30 135 104 67 223 150 375 339 Initial 182 | . . 30 11 52 40 43 106 . 182 Average 135 | . 29 30 44 73 58 151 98 236 133 Maximum Alert Level 1 | . . . . . . 1 . 1 1 Low Security (%) 73 | . 100 100 100 100 100 52 100 31 78 Level 1 26 | . . . . . . 47 . 68 21 Level 2 . | . . . . . . . . . . Level 3 . | . . . . . . . . . . Level 4 . | . . . . . . . . . . Level 5 . | . . . . . . . . . . High Security . | . . . . . . . . . . Max Security . | . . . . . . . . . . Squads Dispatched 9 | . . . 1 . . . 3 . 5 Investigation 2 | . . . 1 . . . . . 1 Extermination 4 | . . . . . . . 2 . 2 Reinforcement 2 | . . . . . . . . . 2 Assault . | . . . . . . . . . . Garrison 1 | . . . . . . . 1 . . Intercept . | . . . . . . . . . . Construction Impeded . | . . . . . . . . . . Haulers Reinforced 1 | . . . . . . . . . 1 Stealth | -11 -10 -10 -9 -9 -8 -8 -7 -7 -7 --------- Run | Scr Mat Min Mat Min Mat Gar Fac Gar Sto Distress Signals 9 | . 1 . 4 . 2 . . . 2 Communications Jammed . | . . . . . . . . . . Distress Signals . | . . . . . . . . . . Times Spotted 121 | . 8 1 21 . 2 7 8 37 37 Peak Tracking Total 18 | . 4 . 18 . 3 7 4 5 4 Tactical Retreats 21 | . 1 . 2 . 1 4 . 9 4 Traps | -11 -10 -10 -9 -9 -8 -8 -7 -7 -7 ------- Run | Scr Mat Min Mat Min Mat Gar Fac Gar Sto Traps Triggered 8 | . . . . . . 2 2 2 2 Indirectly . | . . . . . . . . . . Trap Hack Attempts . | . . . . . . . . . . Triggered . | . . . . . . . . . . Disarmed . | . . . . . . . . . . Reprogrammed . | . . . . . . . . . . Reused . | . . . . . . . . . . Traps Extracted . | . . . . . . . . . . Installed . | . . . . . . . . . . Triggered 3 | . . . . . . . . 3 . Machines | -11 -10 -10 -9 -9 -8 -8 -7 -7 -7 ---------- Run | Scr Mat Min Mat Min Mat Gar Fac Gar Sto Machines Disabled 8 | . 1 . . . . 1 . 4 2 Max in Single Turn 1 | . 1 . . . . 1 . 1 1 Garrison Relay 5 | . . . . . . 1 . 4 . Machines Sabotaged . | . . . . . . . . . . Garrisons Compromised . | . . . . . . . . . . Overloaded Fab Kills . | . . . . . . . . . . Fab Network Shutdowns . | . . . . . . . . . . Hacking | -11 -10 -10 -9 -9 -8 -8 -7 -7 -7 --------- Run | Scr Mat Min Mat Min Mat Gar Fac Gar Sto Machines Accessed 21 | . 1 . 2 . 4 . 7 . 7 Terminals 17 | . 1 . 2 . 3 . 5 . 6 Fabricators . | . . . . . . . . . . Repair Stations . | . . . . . . . . . . Recycling Units 2 | . . . . . . . 1 . 1 Scanalyzers . | . . . . . . . . . . Garrison Access 2 | . . . . . 1 . 1 . . Total Hacks 40 | . 3 . 6 . 6 . 11 . 14 Successful 27 | . 2 . 2 . 4 . 9 . 10 Failed 13 | . 1 . 4 . 2 . 2 . 4 Catastrophic . | . . . . . . . . . . Database Lockouts . | . . . . . . . . . . Manual 29 | . 1 . 6 . 5 . 8 . 9 Terminals 35 | . 3 . 6 . 5 . 8 . 13 Fabricators . | . . . . . . . . . . Repair Stations . | . . . . . . . . . . Recycling Units 2 | . . . . . . . 1 . 1 Scanalyzers . | . . . . . . . . . . Garrison Access 3 | . . . . . 1 . 2 . . Terminal Hacks 6 | . 1 . . . . . 1 . 4 Record 1 | . . . . . . . . . 1 Open Door 3 | . . . . . . . . . 3 Locate Traps 1 | . . . . . . . 1 . . Hauler Manifests 1 | . 1 . . . . . . . . Fabricator Hacks . | . . . . . . . . . . Repair Station Hacks . | . . . . . . . . . . Recycling Unit Hacks 2 | . . . . . . . 1 . 1 Report Inventory 1 | . . . . . . . 1 . . Retrieve Components 1 | . . . . . . . . . 1 Scanalyzer . | . . . . . . . . . . Garrison Access Hacks 2 | . . . . . 1 . 1 . . Unlock Access 2 | . . . . . 1 . 1 . . Unauthorized Hacks 17 | . 1 . 2 . 3 . 6 . 5 Terminals 16 | . 1 . 2 . 3 . 5 . 5 Botnet 16 | . 1 . 2 . 3 . 5 . 5 Fabricators . | . . . . . . . . . . Repair Stations . | . . . . . . . . . . Recycling Units . | . . . . . . . . . . Scanalyzers . | . . . . . . . . . . Garrison Access 1 | . . . . . . . 1 . . Restock 1 | . . . . . . . 1 . . Data Cores Recovered . | . . . . . . . . . . Used . | . . . . . . . . . . Hacking Detections 17 | . . . 2 . 4 . 6 . 5 Full Trace Events 1 | . . . 1 . . . . . . Feedback Events . | . . . . . . . . . . Feedback Blocked . | . . . . . . . . . . Robot Schematics Acquired . | . . . . . . . . . . Robots Built . | . . . . . . . . . . Matter . | . . . . . . . . . . Time . | . . . . . . . . . . Total Robot Build Rating . | . . . . . . . . . . Part Schematics Acquired . | . . . . . . . . . . Parts Built . | . . . . . . . . . . Matter . | . . . . . . . . . . Time . | . . . . . . . . . . Total Part Build Rating . | . . . . . . . . . . Parts Repaired . | . . . . . . . . . . Time . | . . . . . . . . . . Parts Recycled . | . . . . . . . . . . Recycled Matter . | . . . . . . . . . . Retrieved Matter . | . . . . . . . . . . Retrieved Components 10 | . . . . . . . . . 10 Parts Scanalyzed . | . . . . . . . . . . Part Schematics Acquired . | . . . . . . . . . . Parts Damaged . | . . . . . . . . . . Bothacking | -11 -10 -10 -9 -9 -8 -8 -7 -7 -7 ------------ Run | Scr Mat Min Mat Min Mat Gar Fac Gar Sto Used RIF Installer 2 | . . . . . . 1 . 1 . Coupler Efficiency 1 | . . . . . . . . 1 . Robots Hacked 33 | . . . . . . . 5 8 20 Non-combat 11 | . . . . . . . 3 . 8 Combat 22 | . . . . . . . 2 8 12 Robot Hacks Applied 35 | . . . . . . . 5 10 20 parse_system 7 | . . . . . . . 2 1 4 drop_inventory 3 | . . . . . . . . . 3 map_route 1 | . . . . . . . 1 . . reboot_system 1 | . . . . . . . . 1 . go_dormant 1 | . . . . . . . 1 . . overwrite_iff 1 | . . . . . . . . 1 . streamctrl_high 1 | . . . . . . . . . 1 formatsys_low 2 | . . . . . . . . . 2 formatsys_high 18 | . . . . . . . 1 7 10 Relay Couplers Released 19 | . . . . . . 4 . 15 . Machine Destruction 19 | . . . . . . 4 . 15 . Attached 12 | . . . . . . . 2 8 2 Robots Rewired . | . . . . . . . . . . Allies Hacked . | . . . . . . . . . . Hacks Repelled . | . . . . . . . . . . Allies | -11 -10 -10 -9 -9 -8 -8 -7 -7 -7 -------- Run | Scr Mat Min Mat Min Mat Gar Fac Gar Sto Total Allies 22 | . . . . 1 . . 1 7 13 Largest Group 6 | . . . . 1 1 . 1 3 6 Highest-Rated Group 138 | . . . . 31 31 . 32 48 138 Highest-Rated Ally 32 | . . . . 31 31 . 32 16 32 Total Orders 4 | . . . . . . . 3 . 1 STAY 2 | . . . . . . . 2 . . FOLLOW 1 | . . . . . . . 1 . . EXPLORE 1 | . . . . . . . . . 1 Ally Attacks 108 | . . . . 5 . . 5 30 68 Total Damage 1893 | . . . . 84 . . 177 413 1219 Kills 14 | . . . . 2 . . 1 3 8 Allies Corrupted . | . . . . . . . . . . Allies Melted . | . . . . . . . . . . Intel | -11 -10 -10 -9 -9 -8 -8 -7 -7 -7 ------- Run | Scr Mat Min Mat Min Mat Gar Fac Gar Sto Robot Analysis Total . | . . . . . . . . . . Derelict Logs Recovered . | . . . . . . . . . . Drone Launches 4 | . . . . . . . . . 4 Drone Recoveries 3 | . . . . . . . . . 3 Exploration | -11 -10 -10 -9 -9 -8 -8 -7 -7 -7 ------------- Run | Scr Mat Min Mat Min Mat Gar Fac Gar Sto Turns Passed 4797 | . 300 183 131 163 158 206 810 1152 1694 Spaces Moved 3735 | 1 216 141 108 182 170 193 946 748 1030 Core 1 | . . . . . . . . . 1 Treads . | . . . . . . . . . . Legs 1378 | 1 216 107 . . . . . 717 337 Wheels 692 | . . . . . . . . . 692 Hover 1664 | . . 34 108 182 170 193 946 31 . Flight . | . . . . . . . . . . Fastest Speed 56 | 120 120 76 76 80 80 80 56 56 100 Average Speed 97 | 120 120 109 76 80 80 80 62 117 118 Slowest Speed 650 | 120 120 150 80 80 80 80 180 120 650 Overloaded Moves . | . . . . . . . . . . Propulsion Burnouts . | . . . . . . . . . . Robots Hopped . | . . . . . . . . . . Cave-ins Triggered . | . . . . . . . . . . Exploration Rate (%) 36 | 2 33 25 17 41 15 41 20 86 87 Regions Visited 9 Branch Regions 3 Pre-discovered Areas . | . . . . . . . . . . Known Exits Taken 2 | . . . . . 1 . 1 . . Unknown Exits Taken 5 | 1 1 1 1 1 . . . . . Scrap Searched 1 | . . . . 1 . . . . . Spaces Dug 4 | . . . . . . . 1 2 1 Terrain Destroyed 43 | . 34 . . . . . 1 2 6 Melee 4 | . . . . . . . 1 2 1 Projectile 5 | . . . . . . . . . 5 AOE 34 | . 34 . . . . . . . . Terrain Rammed . | . . . . . . . . . . Walls Destroyed . | . . . . . . . . . . Machines Disabled . | . . . . . . . . . . Actions | -11 -10 -10 -9 -9 -8 -8 -7 -7 -7 --------- Run | Scr Mat Min Mat Min Mat Gar Fac Gar Sto Total 4617 | . 239 170 136 200 182 231 1151 942 1366 Wait 372 | . . 20 . 13 . 2 143 67 127 Move 3724 | . 215 140 107 181 169 191 945 746 1030 Hop . | . . . . . . . . . . Pick Up 54 | . 5 3 5 3 1 2 7 9 19 Fast Attach 45 | . 1 1 2 . 1 . 9 10 21 Attach 26 | . . 1 2 1 2 . 6 9 5 Detach 27 | . . . 1 . 1 . 5 6 14 Swap 43 | . 2 1 . . 1 . 6 11 22 Drop 58 | . 5 4 5 2 1 2 8 7 24 Fire 33 | . 11 . . . . . . . 22 Melee 186 | . . . 14 . 6 9 15 65 77 Ram . | . . . . . . . . . . Kick 1 | . . . . . . . . 1 . Crush . | . . . . . . . . . . Escape Stasis 42 | . . . . . . 25 7 10 . Rewire 6 | . . . . . . . . 1 5 Trap . | . . . . . . . . . . Miscellaneous . | . . . . . . . . . . Route ------- -11/Scrapyard -10/Materials -10/Mines -9/Materials -9/Mines -8/Materials -8/Garrison -7/Factory (discovered 3 exits: [*Fac] / [*Low] / Gar) -7/Garrison (discovered 3 exits: *Sto x3) -7/Storage History --------- Turn | Location | Event 1 | -11/Scrapyard | Discovered new exit (range 0) 1 | -11/Scrapyard | Entered Materials 227 | -10/Materials | Discovered new exit (range 10) 301 | -10/Materials | Entered Mines 311 | -10/Mines | Build established: Mutant 373 | -10/Mines | Assembled infested the area 378 | -10/Mines | Assisted by a Guerilla fighting off Assembled 437 | -10/Mines | Discovered new exit (range 8) 484 | -10/Mines | Entered Materials 484 | -9/Materials | Evolved 2 slots: Utility x2 566 | -9/Materials | Discovered new exit (range 16) 615 | -9/Materials | Entered Mines 625 | -9/Mines | Received a Mining Laser from a helpful Derelict 725 | -9/Mines | Met a Derelict bent on vengeance 764 | -9/Mines | Discovered new exit (range 6) 778 | -9/Mines | Entered Materials 778 | -8/Materials | Accompanied by 1 ally 778 | -8/Materials | Evolved 2 slots: Utility x1, Weapon x1 935 | -8/Materials | Identified exit to Garrison 936 | -8/Materials | Entered Garrison 1004 | -8/Garrison | Triggered checkpoint 1045 | -8/Garrison | Garrison Relay disabled 1129 | -8/Garrison | Discovered new exit (range 8) 1138 | -8/Garrison | Installed Relay Interface Framework 1142 | -8/Garrison | Entered Factory 1142 | -7/Factory | Evolved 2 slots: Utility x2 1393 | -7/Factory | Discovered new exit (range 5) 1449 | -7/Factory | Discovered new exit (range 6) 1904 | -7/Factory | Identified exit to Garrison 1946 | -7/Factory | Garrison activated, responded to threat 1952 | -7/Factory | Entered Garrison 2035 | -7/Garrison | Lost 3 parts (1p2n) 2058 | -7/Garrison | Triggered checkpoint 2104 | -7/Garrison | Garrison Relay disabled 2288 | -7/Garrison | Triggered checkpoint 2318 | -7/Garrison | Garrison Relay disabled 2366 | -7/Garrison | Discovered new exit (range 13) 2617 | -7/Garrison | Discovered new exit (range 11) 2648 | -7/Garrison | Triggered checkpoint 2705 | -7/Garrison | Lost 4 parts (1n1u2w) 2712 | -7/Garrison | Garrison Relay disabled 2792 | -7/Garrison | Triggered checkpoint 2852 | -7/Garrison | Discovered new exit (range 13) 2872 | -7/Garrison | Expanded RIF knowledge: Coupler Efficiency 2916 | -7/Garrison | Triggered checkpoint 2919 | -7/Garrison | Core integrity fell below 50% 2939 | -7/Garrison | Garrison Relay disabled 3030 | -7/Garrison | Build established: Bothacker-Mutant 3104 | -7/Garrison | Entered Storage 3104 | -7/Storage | Accompanied by 3 allies 4036 | -7/Storage | Core integrity fell below 20% 4798 | -7/Storage | Destroyed by P-60 Hacker with Shock Rifle Last Messages --------------- 04714_ Acquired Drone Bay. 04717_ Dropped Med. Matter Pod. 04718_ Extracted 20 matter. 04719_ Acquired Drone Bay. 04722_ Drone released from Drone Bay. 04732_ AI1UE CSZBLSZG65O:LNPX8>TC8GPJ,Z,RC 04742_ K-01 Serf cleans the Terminal. 04746_ Drone destroyed. 04750_ Drone suffers critical hit. 04753_ Drone retrieved by Drone Bay. 04761_ System corrupted: Heat flow error (+259). 04761_ Connecting with Terminal... 04771_ Chainsword follow-up attack on S-27 Virus. 04777_ Destroyed Lgt. Nuclear Core. 04779_ S-27 Virus destroyed. 04786_ C-30 ARC bursts open, deploying its payload. 04786_ P-60 Hacker unfolds itself. 04787_ S-27 Virus destroyed. 04792_ Acquired 10 matter. 04797_ System corrupted: Imp. Datajack targeting data glitched. Map ----- +----------------------------------------------------+ | | | | | | | ??????????????????????????????????????? | | ??????????????????????????????????????? | | ??????????????????????????????????????? | | ??????????????????????????????????????? | | ??????????????????????????????????????? | | ??????????????????????????????????????? | | ??????????????????????????????????????? | | ??????????????????????????????????????? | | ??????????????????????????????????????? | | ??????????????????????????????????????? | | ??????????????????????????????????????? | | ??????????????????????????????????????? | | ??????????????????????????????????????? | | ??????????????????????????????????????? | | ?????????""""?????????????????????????? | | ????????## #?????????????????????????# | | ?????????T #?????????????????????????# | | ?????????# #????????????????????????## | | ?????????# #???######???????????????#T | | ?????????# ##### #??????????####### | | ?######### p "T #??????????# ?# | | ?# # %% "" #??????????# """ # | | ?# #####@## #??????????# """ # | | ?# """ ## g=## ############# """ + | | ? """ ## a ## # # # | | ?# """ ## ## + # # | | ?# ## """ ## # # ?# | | ?# """ ## """ ## # / % #####?# | | ?# """ ## """ ## # #????## | | ?# """ ## ## # ! %#????# | | ?# ! ## """ # # #????# | | ?# ## """ ## #############????# | | ?#####/#### """ ## ##???######??????# | | ????# %/ # ##### ########% | | ????# ### # %=^ %T" % | | ????# #?####### !=[^% "" | | ????# #???????# ##### % ######### | | ????# #???????#+####?########???????? | | ????# #???????# ######?????????????? | | ????# #???????# [# =!#?????????????? | | ????# #???????# [ =#????#####??### | | ????# #???????##T#! ! #?#??# #### # | | ????# #????????########## ?# # | | ????# #??????????? ?# # """ | | ????# #???????????? # # " " | | ????# #?????????????"" """ # ! # | | ????# #?????????????"" """ /= + | +----------------------------------------------------+ Best States ------------- Heat Dissipation 34 Energy Generation 16 Energy Capacity 290 Matter Stores 400 Matter Capacity 400 Sight Range 16 Terrain Scan Range 16 Terrain Scan Density 360 Armor Coverage 750 Evasion (%) 53 Melee Accuracy 12 Offensive Hacking 10 Relay Coupler Types 157 Relay Coupler Value 4 Item Schematics ----------------- None Robot Schematics ------------------ None Fabricated ------------ Nothing Alien Tech Used ----------------- None Achievements -------------- Factory Defaults Shopping List Challenges ------------ None Game ------ Seed DecoderPropulsionMantle Manual? 0 Play Time 01:24:14 Cumulative 33.9 hours Start 2020.10.11 @ 13:21:59 End 2020.10.11 @ 14:43:16 Sessions 1 Manual Loads 0 Difficulty Rogue Special Mode None Game No. 40 Rogue 40 Adventurer 0 Explorer 0 Win Type - Total 1 Types 1/0/0/0/0/0/0/0/0 Lore% 25 Gallery% 42 Achievement% 28 Wizard Run 0 Options --------- ASCII 0 Keyboard 1 Movement Numpad Keybinds 0 Fullscreen 2 Font 18/SmallcapsGlow Map View 76x50 Tactical HUD 1 Map Filters NONE Filters NONE Steam 1 RUN: 6b9d8878-0615-4b87-b1b7-e1de05e576d7